fUSD/lending_fUSD_20251027
["ID","MTS","AMOUNT","RATE_DAILY","PERIOD"]
[392502021,1761575445901,-14012.6111273,0.00032759,3]
[392502022,1761575445910,-444.0,0.00032769,31]
[392502023,1761575445920,-448.87424816,0.00032769,2]
[392502024,1761575445929,-1000.0,0.00032769,2]
[392502025,1761575445938,-1000.0,0.00032769,2]
[392502026,1761575445947,-1000.0,0.00032769,2]
[392502027,1761575445956,-1000.0,0.00032769,2]
[392502028,1761575445966,-1000.0,0.00032769,2]
[392502029,1761575445975,-1000.0,0.00032769,2]
[392502030,1761575445985,-1000.0,0.00032769,2]
[392502031,1761575445994,-1000.0,0.00032769,2]
[392502032,1761575446003,-1000.0,0.00032769,2]
[392502033,1761575446014,-845.09192012,0.00032769,2]
[392502034,1761575446039,-121047.5018752,0.00032769,2]
[392502035,1761575446056,-500.0,0.00032773,5]
[392502036,1761575446075,-500.0,0.00032773,5]
[392502037,1761575446096,-688.49839244,0.00032859,2]
[392502038,1761575446114,-15813.4558284,0.00032867,3]
[392502039,1761575446131,-1377.23467937,0.00032867,3]
[392502040,1761575446166,-12635.37644793,0.00032867,3]
[392502041,1761575446183,-500.0,0.00032876,2]
[392502042,1761575446202,-500.0,0.00032876,2]
[392502043,1761575446223,-195.04,0.00032877,2]
[392502044,1761575446237,-172.0,0.00032877,30]
[392502046,1761575446253,-172.0,0.00032877,30]
[392502047,1761575446269,-172.0,0.00032877,30]
[392502048,1761575446283,-172.0,0.00032877,30]
[392502049,1761575446297,-172.0,0.00032877,30]
[392502051,1761575446313,-172.0,0.00032877,30]
[392502053,1761575446327,-172.0,0.00032877,30]
[392502054,1761575446342,-172.0,0.00032877,30]
[392502055,1761575446357,-172.0,0.00032877,30]
[392502056,1761575446373,-249.0,0.00032877,30]
[392502057,1761575446387,-249.0,0.00032877,30]
[392502058,1761575446402,-249.0,0.00032877,30]
[392502059,1761575446417,-249.0,0.00032877,30]
[392502060,1761575446432,-249.0,0.00032877,30]
[392502061,1761575446448,-249.0,0.00032877,30]
[392502062,1761575446464,-249.0,0.00032877,30]
[392502063,1761575446480,-249.0,0.00032877,30]
[392502064,1761575446495,-249.0,0.00032877,30]
[392502065,1761575446510,-249.0,0.00032877,30]
[392502066,1761575446525,-249.0,0.00032877,30]
[392502067,1761575446541,-249.0,0.00032877,30]
[392502068,1761575446557,-261.0,0.00032877,30]
[392502069,1761575446572,-261.0,0.00032877,30]
[392502070,1761575446586,-261.0,0.00032877,30]
[392502071,1761575446600,-261.0,0.00032877,30]
[392502072,1761575446616,-261.0,0.00032877,30]
[392502073,1761575446630,-261.0,0.00032877,30]
[392502074,1761575446645,-261.0,0.00032877,30]
[392502075,1761575446659,-261.0,0.00032877,30]
[392502076,1761575446678,-261.0,0.00032877,30]
[392502077,1761575446693,-261.0,0.00032877,30]
[392502078,1761575446706,-187.0,0.00032877,30]
[392502079,1761575446721,-187.0,0.00032877,30]
[392502080,1761575446735,-187.0,0.00032877,30]
[392502081,1761575446751,-187.0,0.00032877,30]
[392502082,1761575446765,-187.0,0.00032877,30]
[392502083,1761575446779,-187.0,0.00032877,30]
[392502084,1761575446793,-187.0,0.00032877,30]
[392502085,1761575446807,-187.0,0.00032877,30]
[392502086,1761575446816,-187.0,0.00032877,30]
[392502087,1761575446827,-187.0,0.00032877,30]
[392502088,1761575446836,-187.0,0.00032877,30]
[392502089,1761575446947,-197.0,0.00032877,30]
[392502090,1761575447004,-197.0,0.00032877,30]
[392502091,1761575447014,-197.0,0.00032877,30]
[392502092,1761575447024,-197.0,0.00032877,30]
[392502093,1761575447033,-197.0,0.00032877,30]
[392502094,1761575447043,-197.0,0.00032877,30]
[392502095,1761575447052,-197.0,0.00032877,30]
[392502096,1761575447061,-197.0,0.00032877,30]
[392502097,1761575447070,-197.0,0.00032877,30]
[392502098,1761575447079,-197.0,0.00032877,30]
[392502099,1761575447088,-200.0,0.00032877,30]
[392502100,1761575447097,-200.0,0.00032877,30]
[392502101,1761575447106,-200.0,0.00032877,30]
[392502102,1761575447116,-200.0,0.00032877,30]
[392502103,1761575447125,-200.0,0.00032877,30]
[392502104,1761575447135,-200.0,0.00032877,30]
[392502105,1761575447145,-200.0,0.00032877,30]
[392502106,1761575447155,-200.0,0.00032877,30]
[392502107,1761575447164,-200.0,0.00032877,30]
[392502108,1761575447172,-200.0,0.00032877,30]
[392502109,1761575447182,-200.0,0.00032877,30]
[392502110,1761575447191,-200.0,0.00032877,30]
[392502111,1761575447200,-200.0,0.00032877,30]
[392502112,1761575447210,-200.0,0.00032877,30]
[392502113,1761575447219,-200.0,0.00032877,30]
[392502114,1761575447229,-239.0,0.00032877,30]
[392502115,1761575447240,-239.0,0.00032877,30]
[392502116,1761575447249,-239.0,0.00032877,30]
[392502117,1761575447258,-239.0,0.00032877,30]
[392502118,1761575447267,-239.0,0.00032877,30]
[392502119,1761575447276,-239.0,0.00032877,30]
[392502120,1761575447285,-239.0,0.00032877,30]
[392502121,1761575447295,-239.0,0.00032877,30]
[392502122,1761575447305,-239.0,0.00032877,30]
[392502123,1761575447314,-239.0,0.00032877,30]
[392502124,1761575447323,-260.0,0.00032877,30]
[392502125,1761575447332,-260.0,0.00032877,30]
[392502126,1761575447341,-260.0,0.00032877,30]
[392502127,1761575447350,-260.0,0.00032877,30]
[392502128,1761575447359,-260.0,0.00032877,30]
[392502129,1761575447368,-260.0,0.00032877,30]
[392502130,1761575447377,-260.0,0.00032877,30]
[392502131,1761575447387,-260.0,0.00032877,30]
[392502132,1761575447395,-260.0,0.00032877,30]
[392502133,1761575447405,-260.0,0.00032877,30]
[392502134,1761575447414,-260.0,0.00032877,30]
[392502135,1761575447423,-260.0,0.00032877,30]
[392502136,1761575447432,-211.0,0.00032877,30]
[392502137,1761575447442,-211.0,0.00032877,30]
[392502138,1761575447453,-211.0,0.00032877,30]
[392502139,1761575447464,-211.0,0.00032877,30]
[392502140,1761575447473,-211.0,0.00032877,30]
[392502141,1761575447482,-211.0,0.00032877,30]
[392502142,1761575447491,-211.0,0.00032877,30]
[392502143,1761575447501,-211.0,0.00032877,30]
[392502144,1761575447510,-211.0,0.00032877,30]
[392502145,1761575447519,-211.0,0.00032877,30]
[392502146,1761575447529,-272.0,0.00032877,30]
[392502147,1761575447538,-272.0,0.00032877,30]
[392502148,1761575447548,-272.0,0.00032877,30]
[392502149,1761575447558,-72.41147922,0.00032877,30]
[392502150,1761575447572,-199.58852078,0.00032877,30]
[392502151,1761575447582,-272.0,0.00032877,30]
[392502152,1761575447592,-272.0,0.00032877,30]
[392502153,1761575447601,-272.0,0.00032877,30]
[392502154,1761575447610,-272.0,0.00032877,30]
[392502155,1761575447619,-272.0,0.00032877,30]
[392502156,1761575447628,-272.0,0.00032877,30]
[392502157,1761575447638,-272.0,0.00032877,30]
[392502158,1761575447647,-272.0,0.00032877,30]
[392502159,1761575447656,-200.0,0.00032877,30]
[392502160,1761575447666,-200.0,0.00032877,30]
[392502161,1761575447679,-200.0,0.00032877,30]
[392502162,1761575447688,-200.0,0.00032877,30]
[392502163,1761575447698,-200.0,0.00032877,30]
[392502164,1761575447708,-87.14001495,0.00032877,30]
[392502165,1761575447789,-112.85998505,0.00032877,30]
[392502166,1761575447799,-3.76762188,0.00032877,30]
[392502167,1761575447818,-196.23237812,0.00032877,30]
[392502168,1761575447828,-200.0,0.00032877,30]
[392502169,1761575447838,-200.0,0.00032877,30]
[392502170,1761575447847,-200.0,0.00032877,30]
[392502171,1761575447856,-224.0,0.00032877,30]
[392502172,1761575447866,-224.0,0.00032877,30]
[392502173,1761575447876,-224.0,0.00032877,30]
[392502174,1761575447886,-224.0,0.00032877,30]
[392502175,1761575447896,-224.0,0.00032877,30]
[392502176,1761575447905,-224.0,0.00032877,30]
[392502177,1761575447915,-224.0,0.00032877,30]
[392502178,1761575447925,-98.26550625,0.00032877,30]
[392502179,1761575447937,-125.73449375,0.00032877,30]
[392502180,1761575447946,-224.0,0.00032877,30]
[392502181,1761575447956,-224.0,0.00032877,30]
[392502182,1761575447966,-6.29550615,0.00032877,30]
[392502183,1761575447985,-217.70449385,0.00032877,30]
[392502184,1761575447995,-224.0,0.00032877,30]
[392502185,1761575448005,-168.0,0.00032877,30]
[392502186,1761575448014,-168.0,0.00032877,30]
[392502187,1761575448023,-168.0,0.00032877,30]
[392502188,1761575448033,-168.0,0.00032877,30]
[392502189,1761575448042,-168.0,0.00032877,30]
[392502190,1761575448051,-168.0,0.00032877,30]
[392502191,1761575448061,-168.0,0.00032877,30]
[392502192,1761575448070,-168.0,0.00032877,30]
[392502193,1761575448079,-168.0,0.00032877,30]
[392502194,1761575448088,-168.0,0.00032877,30]
[392502195,1761575448098,-153.0,0.00032877,30]
[392502196,1761575448107,-162.0,0.00032877,30]
[392502197,1761575448116,-162.0,0.00032877,30]
[392502198,1761575448126,-162.0,0.00032877,30]
[392502199,1761575448135,-162.0,0.00032877,30]
[392502200,1761575448144,-162.0,0.00032877,30]
[392502201,1761575448154,-162.0,0.00032877,30]
[392502202,1761575448164,-153.0,0.00032877,30]
[392502203,1761575448174,-105.13506444,0.00032877,30]
[392502206,1761575491066,1138.0,0.00031507,120]
[392502220,1761575783567,1398.0,0.00037123,50]
[392502232,1761576013482,150.0,0.00029624,120]
[392502235,1761576108939,165.80712271,0.000315,120]
[392502236,1761576145896,-596.09592074,0.00023198,60]
[392502237,1761576166295,-2047.03357699,0.00023198,60]
[392502239,1761576166318,-449.96695339,0.000232,2]
[392502240,1761576166340,-336.46860042,0.00023248,2]
[392502241,1761576166361,-150.0,0.00023298,2]
[392502242,1761576166383,-150.0,0.00023298,2]
[392502243,1761576166403,-151.0,0.00023298,2]
[392502244,1761576166548,-187.09619685,0.0002403,2]
[392502245,1761576166568,-151.93086821,0.00024905,2]
[392502246,1761576166588,-500.0,0.00024932,2]
[392502247,1761576166610,-250.0,0.00025518,2]
[392502248,1761576166631,-195.0,0.00025518,2]
[392502249,1761576166651,-150.0,0.00025628,2]
[392502250,1761576166671,-289.12690887,0.00026719,7]
[392502251,1761576166692,-1200.0,0.00027338,2]
[392502252,1761576166713,-300.0,0.00027338,2]
[392502253,1761576166734,-508.29032832,0.00027339,2]
[392502254,1761576166753,-500.0,0.00027339,2]
[392502255,1761576166774,-549.02756739,0.00027339,2]
[392502256,1761576166794,-1000.0,0.000279,2]
[392502257,1761576166814,-1120.421712,0.00029262,2]
[392502258,1761576166835,-176.33,0.0002941,2]
[392502259,1761576166857,-300.0,0.00029545,2]
[392502260,1761576166878,-724.3,0.00029561,2]
[392502261,1761576166897,-150.0,0.00029624,2]
[392502262,1761576166918,-187.09619685,0.00029662,2]
[392502263,1761576166938,-432.2575351,0.00029674,2]
[392502264,1761576166959,-1668.0,0.00029675,2]
[392502265,1761576166978,-1960.05,0.00029927,2]
[392502266,1761576166998,-500.0,0.0003,7]
[392502267,1761576197671,-500.0,0.00030137,2]
[392502268,1761576197698,-500.0,0.00030137,2]
[392502269,1761576197726,-466.32594272,0.00030137,2]
[392502270,1761576197749,-4440.59,0.0003047,2]
[392502271,1761576197772,-181.61552567,0.0003047,26]
[392502272,1761576197799,-564.83,0.0003047,26]
[392502273,1761576197823,-9022.93,0.0003062,2]
[392502274,1761576197848,-585.56,0.00031045,2]
[392502275,1761576197874,-1030.14798891,0.0003108,2]
[392502276,1761576197898,-1030.14798891,0.0003108,2]
[392502277,1761576197924,-172.28,0.00031095,2]
[392502278,1761576197951,-372.57283393,0.00031119,2]
[392502279,1761576197978,-151.0,0.00031119,2]
[392502280,1761576198004,-151.0,0.00031119,2]
[392502281,1761576198033,-151.0,0.00031119,2]
[392502282,1761576198064,-151.0,0.00031119,2]
[392502283,1761576198094,-151.0,0.00031119,2]
[392502284,1761576198123,-151.0,0.00031119,2]
[392502285,1761576198151,-151.0,0.00031119,2]
[392502286,1761576198177,-574.12855637,0.00031119,2]
[392502287,1761576198206,-151.0,0.00031119,2]
[392502288,1761576198235,-151.0,0.00031119,2]
[392502289,1761576198268,-151.0,0.00031119,2]
[392502290,1761576198297,-151.0,0.00031119,2]
[392502291,1761576198328,-151.0,0.00031119,2]
[392502292,1761576198356,-151.0,0.00031119,2]
[392502293,1761576198383,-151.0,0.00031119,2]
[392502294,1761576198409,-151.0,0.00031119,2]
[392502295,1761576198437,-151.0,0.00031119,2]
[392502296,1761576198463,-151.0,0.00031119,2]
[392502297,1761576198492,-151.0,0.00031119,2]
[392502298,1761576198519,-151.0,0.00031119,2]
[392502299,1761576198547,-151.0,0.00031119,2]
[392502300,1761576198576,-151.0,0.00031119,2]
[392502301,1761576198602,-151.0,0.00031119,2]
[392502302,1761576198631,-151.0,0.00031119,2]
[392502303,1761576198659,-151.0,0.00031119,2]
[392502304,1761576198688,-258.41525798,0.00031119,2]
[392502305,1761576198715,-151.0,0.00031119,2]
[392502306,1761576198741,-151.0,0.00031119,2]
[392502307,1761576198767,-151.0,0.00031119,2]
[392502308,1761576198794,-151.0,0.00031119,2]
[392502309,1761576198822,-151.0,0.00031119,2]
[392502310,1761576198848,-151.0,0.00031119,2]
[392502311,1761576198873,-44006.3,0.00031137,2]
[392502312,1761576198898,-500.0,0.00031173,5]
[392502313,1761576198923,-161.62578245,0.00031173,5]
[392502314,1761576198950,-500.0,0.00031173,5]
[392502315,1761576198974,-500.0,0.00031416,7]
[392502316,1761576198999,-343.87394297,0.00031667,2]
[392502317,1761576199024,-476.74869043,0.0003168,2]
[392502318,1761576199052,-1000.0,0.00031721,5]
[392502319,1761576199077,-916.84,0.00031821,2]
[392502320,1761576199104,-172.28,0.00031922,2]
[392502321,1761576199137,-174.0340419,0.00032,120]
[392502322,1761576199169,-197.58347424,0.00032231,2]
[392502323,1761576199195,-216.4340726,0.00032231,2]
[392502324,1761576199324,-638.00106942,0.00032231,2]
[392502325,1761576199352,-163.75279427,0.00032232,2]
[392502326,1761576199377,-9120.51,0.00032232,2]
[392502327,1761576199402,-299.99,0.00032232,30]
[392502328,1761576199428,-1717.02,0.00032232,2]
[392502329,1761576199454,-31184.5,0.00032232,2]
[392502330,1761576199479,-3647.8,0.00032232,2]
[392502331,1761576199506,-9999.99,0.00032232,2]
[392502332,1761576199533,-9999.99,0.00032232,2]
[392502333,1761576199561,-150.99,0.00032232,2]
[392502334,1761576199586,-8287.89,0.00032232,2]
[392502335,1761576199614,-3579.68,0.00032232,2]
[392502336,1761576199640,-9999.99,0.00032232,2]
[392502337,1761576199665,-499.99,0.00032232,2]
[392502338,1761576199692,-627.69,0.00032232,2]
[392502339,1761576199720,-999.99,0.00032232,2]
[392502340,1761576199744,-9999.99,0.00032232,2]
[392502341,1761576199768,-9999.99,0.00032232,2]
[392502342,1761576199793,-1587.18,0.00032232,2]
[392502343,1761576199817,-150.99,0.00032232,30]
[392502344,1761576199844,-5930.2,0.00032232,10]
[392502345,1761576199867,-354.46,0.00032232,20]
[392502346,1761576199891,-684.41784243,0.00032268,5]
[392502347,1761576199915,-156.56,0.00032274,2]
[392502348,1761576199938,-1000.0,0.00032304,2]
[392502349,1761576199965,-2401.64,0.00032305,2]
[392502350,1761576199992,-476.05,0.00032411,2]
[392502351,1761576200019,-150.0,0.00032713,7]
[392502352,1761576200048,-450.0,0.00032713,7]
[392502353,1761576200076,-172.28,0.00032749,2]
[392502354,1761576200103,-500.0,0.00032768,7]
[392502355,1761576200132,-1553.93053905,0.00032777,2]
[392502356,1761576200160,-500.0,0.00032873,5]
[392502357,1761576200186,-405.82862696,0.00032873,5]
[392502358,1761576200211,-502.67293591,0.00032873,5]
[392502359,1761576200236,-500.0,0.00032873,5]
[392502360,1761576200262,-200.0,0.00032873,5]
[392502361,1761576200288,-500.0,0.00032873,5]
[392502362,1761576200316,-507.85207779,0.00032873,2]
[392502363,1761576200343,-500.0,0.00032873,5]
[392502364,1761576200369,-506.5786996,0.00032873,5]
[392502365,1761576200395,-433.21534504,0.00032873,5]
[392502366,1761576200421,-500.0,0.00032873,5]
[392502367,1761576200448,-500.0,0.00032873,5]
[392502368,1761576200474,-151.0,0.00032874,14]
[392502369,1761576200499,-500.0,0.00032876,2]
[392502370,1761576200526,-47.86493556,0.00032877,30]
[392502371,1761576200555,-841.0,0.00032877,30]
[392502372,1761576200584,-841.0,0.00032877,30]
[392502373,1761576200611,-153.0,0.00032877,30]
[392502374,1761576200639,-153.0,0.00032877,30]
[392502375,1761576200666,-153.0,0.00032877,30]
[392502376,1761576200694,-153.0,0.00032877,30]
[392502377,1761576200722,-153.0,0.00032877,30]
[392502378,1761576200749,-153.0,0.00032877,30]
[392502379,1761576200777,-153.0,0.00032877,30]
[392502380,1761576200805,-153.0,0.00032877,30]
[392502381,1761576200833,-153.0,0.00032877,30]
[392502382,1761576200861,-153.0,0.00032877,30]
[392502383,1761576200889,-153.0,0.00032877,30]
[392502384,1761576200917,-153.0,0.00032877,30]
[392502385,1761576200945,-153.0,0.00032877,30]
[392502386,1761576200972,-153.0,0.00032877,30]
[392502387,1761576201000,-153.0,0.00032877,30]
[392502388,1761576201026,-153.0,0.00032877,30]
[392502389,1761576201055,-153.0,0.00032877,30]
[392502390,1761576201091,-153.0,0.00032877,30]
[392502391,1761576201119,-153.0,0.00032877,30]
[392502392,1761576201150,-153.0,0.00032877,30]
[392502393,1761576201179,-153.0,0.00032877,30]
[392502394,1761576201308,-6601.3917882,0.00032877,2]
[392502395,1761576201339,-42751.3931731,0.00032877,2]
[392502396,1761576201367,-24778.833216,0.00032877,2]
[392502397,1761576201394,-1454.87987,0.00032877,2]
[392502398,1761576201422,-220.0,0.00032877,30]
[392502399,1761576201448,-1454.87987,0.0003288,2]
[392502400,1761576201472,-5515.0,0.000329,5]
[392502401,1761576201499,-158.66502099,0.000329,2]
[392502402,1761576201525,-476.05,0.00032986,2]
[392502403,1761576201551,-476.05,0.00032986,2]
[392502404,1761576201575,-476.05,0.00032986,2]
[392502405,1761576201602,-476.05,0.00032986,2]
[392502406,1761576201629,-476.05,0.00032986,2]
[392502407,1761576201655,-476.05,0.00032986,2]
[392502408,1761576201681,-300.0,0.00033,2]
[392502409,1761576201706,-13137.99499971,0.00033,2]
[392502410,1761576201732,-167.41105173,0.00033,60]
[392502411,1761576201760,-174.0340419,0.00033,120]
[392502412,1761576202239,1096.83347299,0.00031597,2]
[392502413,1761576203704,151.0,0.00032874,14]
[392502414,1761576211114,-547.0,0.00033006,7]
[392502415,1761576211139,-500.0,0.00033027,7]
[392502416,1761576211162,-4987.26513412,0.00033037,2]
[392502417,1761576211182,-500.0,0.00033073,5]
[392502418,1761576211207,-15706.3187049,0.00033086,3]
[392502419,1761576211229,-176.51,0.00033096,2]
[392502420,1761576211253,-1202.57,0.00033096,2]
[392502421,1761576211274,-167.37,0.00033096,2]
[392502422,1761576211295,-301.09,0.00033096,2]
[392502423,1761576211318,-150.0,0.00033096,2]
[392502424,1761576211340,-150.0,0.00033096,2]
[392502425,1761576211360,-199.9,0.00033096,2]
[392502426,1761576211380,-150.0,0.00033096,2]
[392502427,1761576211400,-1202.57,0.00033096,2]
[392502428,1761576211422,-176.51,0.00033096,2]
[392502429,1761576211442,-150.0,0.00033096,2]
[392502430,1761576211463,-168.67,0.00033096,2]
[392502431,1761576211483,-150.0,0.00033096,2]
[392502432,1761576211504,-414.74,0.00033096,2]
[392502433,1761576211524,-1202.57,0.00033096,2]
[392502434,1761576211544,-168.67,0.00033096,2]
[392502435,1761576211660,-150.0,0.00033096,2]
[392502436,1761576211682,-176.2,0.00033096,2]
[392502437,1761576211702,-150.0,0.00033096,2]
[392502438,1761576211723,-150.0,0.00033096,2]
[392502439,1761576211744,-414.74,0.00033096,2]
[392502440,1761576211766,-347.68,0.000331,30]
[392502441,1761576211786,-1021.0,0.000331,7]
[392502442,1761576211807,-1394.24,0.00033101,2]
[392502443,1761576211827,-697.12,0.00033127,2]
[392502444,1761576211847,-684.62,0.00033127,2]
[392502445,1761576211868,-697.12,0.00033127,2]
[392502446,1761576211889,-697.12,0.00033127,2]
[392502447,1761576211909,-697.12,0.00033127,2]
[392502448,1761576211931,-697.12,0.00033127,2]
[392502449,1761576211952,-3324.91414091,0.00033161,2]
[392502450,1761576211974,-614.38,0.00033165,2]
[392502451,1761576211995,-1200.0,0.000332,3]
[392502452,1761576212016,-616.84,0.00033233,2]
[392502453,1761576212040,-4926.0,0.00033261,7]
[392502454,1761576212064,-169.0,0.00033285,7]
[392502455,1761576212085,-150.0,0.00033288,4]
[392502456,1761576212108,-548.0,0.0003329,7]
[392502457,1761576212128,-322.0,0.0003333,2]
[392502458,1761576212149,-476.05,0.0003337,2]
[392502459,1761576212171,-476.05,0.0003337,2]
[392502460,1761576212192,-476.05,0.0003337,2]
[392502461,1761576212212,-476.05,0.0003337,2]
[392502462,1761576212233,-476.05,0.0003337,2]
[392502463,1761576212258,-476.05,0.0003337,2]
[392502464,1761576212280,-476.05,0.0003337,2]
[392502465,1761576212305,-476.05,0.0003337,2]
[392502466,1761576212326,-476.05,0.0003337,2]
[392502467,1761576212355,-4926.0,0.00033375,2]
[392502468,1761576212376,-1454.87987,0.0003338,2]
[392502469,1761576212398,-1000.0,0.00033421,5]
[392502470,1761576212420,-787.1047684,0.00033421,5]
[392502471,1761576212445,-1000.0,0.00033421,5]
[392502472,1761576212468,-15706.3187049,0.00033469,3]
[392502473,1761576212491,-3835.0,0.00033479,2]
[392502474,1761576212511,-500.0,0.00033505,28]
[392502475,1761576212534,-4771.0,0.00033568,7]
[392502476,1761576212555,-172.28,0.00033576,2]
[392502477,1761576212576,-166.66,0.00033578,2]
[392502478,1761576212597,-1000.0,0.00033621,5]
[392502479,1761576212623,-4046.58676265,0.00033621,2]
[392502483,1761576413894,-500.0,0.00027339,2]
[392502484,1761576417138,-500.0,0.00031416,28]
[392502485,1761576417159,-476.74869043,0.00031481,2]
[392502486,1761576417180,-64.13951188,0.00032768,28]
[392502487,1761576425095,-272.951268,0.00032768,28]
[392502488,1761576434125,250.0,0.00017,2]
[392502489,1761576435212,300.0,0.00019,2]
[392502490,1761576436296,350.0,0.00021,2]
[392502491,1761576446137,-162.90922012,0.00032768,28]
[392502492,1761576446157,-236.55827948,0.00032789,2]
[392502493,1761576451170,-139.85457654,0.00032789,2]
[392502494,1761576451320,-17.63943927,0.00032858,2]
[392502495,1761576454172,-160.3267069,0.00031227,30]
[392502500,1761576609466,476.74869043,0.000274,2]
[392502531,1761576631986,-295.88708944,0.00031071,20]
[392502533,1761576631995,-6.3332931,0.00031227,30]
[392502535,1761576632005,-166.66,0.00031884,30]
[392502537,1761576632015,-209.62287105,0.000319,2]
[392502553,1761576632187,-35.43921986,0.000319,2]
[392502555,1761576632197,-307.53314374,0.00032,2]
[392502557,1761576632207,-245.06209091,0.00032171,2]
[392502559,1761576632216,-90.06894293,0.00032442,2]
[392502561,1761576632228,-154.99314798,0.00032442,2]
[392502563,1761576632238,-166.66,0.00032542,30]
[392502565,1761576632247,-150.0,0.0003267,2]
[392502567,1761576632257,-289.20829099,0.000327,14]
[392502575,1761576632309,-527.69098567,0.000327,14]
[392502577,1761576632320,-1030.18324532,0.000327,14]
[392502591,1761576638002,-162.92510475,0.00032699,2]
[392502592,1761576638012,-12822.57485273,0.000327,14]
[392502593,1761576638024,-784.0,0.000327,14]
[392502594,1761576638098,-17.81407847,0.000327,14]
[392502597,1761576639943,-1290.42276662,0.000327,14]
[392502598,1761576639955,-1058.7192806,0.000327,14]
[392502599,1761576639981,-554.26977336,0.000327,14]
[392502600,1761576639993,-2740.73961708,0.000327,14]
[392502601,1761576640554,-7497.25816742,0.000327,14]
[392502602,1761576640668,-798.30134264,0.000327,14]
[392502603,1761576640707,-1652.44672616,0.000327,14]
[392502607,1761576643015,-115.65424471,0.000327,14]
[392502608,1761576643103,-643.75339094,0.000327,14]
[392502624,1761576645964,-500.0,0.00032699,2]
[392502625,1761576645974,-8714.79231263,0.000327,14]
[392502627,1761576648591,-3033.70427526,0.000327,14]
[392502628,1761576648827,-4639.46052,0.000327,14]
[392502629,1761576648837,-610.0,0.00032771,2]
[392502630,1761576648847,-476.74869043,0.00032871,2]
[392502631,1761576648857,-920.43,0.00032889,30]
[392502632,1761576648866,-500.0,0.00033027,28]
[392502633,1761576648877,-448.0,0.00033032,7]
[392502634,1761576648886,-500.0,0.00033073,5]
[392502635,1761576648896,-500.0,0.00033073,5]
[392502636,1761576648906,-500.0,0.00033073,5]
[392502637,1761576648915,-150.99,0.00033095,2]
[392502638,1761576648925,-499.99,0.00033095,2]
[392502639,1761576648935,-150.0,0.00033096,2]
[392502640,1761576648945,-1202.57,0.00033096,2]
[392502641,1761576648955,-150.0,0.00033096,2]
[392502642,1761576648964,-414.74,0.00033096,2]
[392502643,1761576648974,-150.0,0.00033096,2]
[392502644,1761576648984,-150.0,0.00033096,2]
[392502645,1761576648993,-1202.57,0.00033096,2]
[392502646,1761576649003,-150.0,0.00033096,2]
[392502647,1761576649013,-414.74,0.00033096,2]
[392502648,1761576649023,-9999.99,0.00033096,2]
[392502649,1761576649032,-617.91,0.00033096,2]
[392502650,1761576649041,-9999.99,0.00033096,2]
[392502651,1761576649050,-9999.99,0.00033096,2]
[392502652,1761576649060,-1202.57,0.00033096,2]
[392502653,1761576649070,-150.0,0.00033096,2]
[392502654,1761576649079,-150.0,0.00033096,2]
[392502655,1761576649089,-414.74,0.00033096,2]
[392502656,1761576649098,-150.0,0.00033096,2]